[Event "Titled Tuesday Blitz March 21 Early 2023"]
[White "Shimanov, Aleksandr"]
[Black "Andreev, Konstantin"]
[WhiteFideId "4198603"]
[BlackFideId "24239305"]
[WhiteElo "2631"]
[BlackElo "2106"]
[Result "1-0"]
[Round "01"]
[TimeControl "180+2"]
[Date "2023.03.21"]
[WhiteClock "0:00:06"]
[BlackClock "0:00:03"]

1. d4 {[%clk 0:02:59]}  Nf6 {[%clk 0:02:59]} 2. Nc3 {[%clk 0:02:57]}  d5 {[%clk 0:02:59]} 3. Bf4 {[%clk 0:02:58]}  a6 {[%clk 0:02:59]} 4. e3 {[%clk 0:02:57]}  c5 {[%clk 0:02:58]} 5. dxc5 {[%clk 0:02:44]}  e6 {[%clk 0:02:55]} 6. Na4 {[%clk 0:02:35]}  Nbd7 {[%clk 0:02:47]} 7. Nf3 {[%clk 0:02:22]}  Nxc5 {[%clk 0:02:45]} 8. Nxc5 {[%clk 0:02:23]}  Bxc5 {[%clk 0:02:45]} 9. Bd3 {[%clk 0:02:24]}  O-O {[%clk 0:02:45]} 10. O-O {[%clk 0:02:24]}  b5 {[%clk 0:02:45]} 11. a4 {[%clk 0:02:22]}  b4 {[%clk 0:02:45]} 12. a5 {[%clk 0:02:18]}  Bb7 {[%clk 0:02:44]} 13. Qe2 {[%clk 0:02:18]}  Qe7 {[%clk 0:02:43]} 14. h3 {[%clk 0:02:13]}  Rfd8 {[%clk 0:02:41]} 15. Rfd1 {[%clk 0:02:12]}  h6 {[%clk 0:02:36]} 16. Bh2 {[%clk 0:02:07]}  Ra7 {[%clk 0:02:33]} 17. Ne5 {[%clk 0:02:04]}  Bd6 {[%clk 0:02:25]} 18. Nf3 {[%clk 0:01:24]}  Bxh2+ {[%clk 0:02:23]} 19. Nxh2 {[%clk 0:01:22]}  Qc7 {[%clk 0:02:23]} 20. Qd2 {[%clk 0:01:21]}  Qc5 {[%clk 0:02:20]} 21. Ra4 {[%clk 0:01:17]}  Qc6 {[%clk 0:01:41]} 22. Rxb4 {[%clk 0:01:13]}  d4 {[%clk 0:01:41]} 23. Nf3 {[%clk 0:01:03]}  e5 {[%clk 0:01:17]} 24. Rb6 {[%clk 0:00:58]}  Qd5 {[%clk 0:01:13]} 25. Bf1 {[%clk 0:00:51]}  Ne4 {[%clk 0:00:54]} 26. Qb4 {[%clk 0:00:47]}  Nxf2 {[%clk 0:00:49]} 27. Re1 {[%clk 0:00:13]}  Nxh3+ {[%clk 0:00:48]} 28. Kh2 {[%clk 0:00:13]}  Ng5 {[%clk 0:00:46]} 29. Nxg5 {[%clk 0:00:13]}  hxg5 {[%clk 0:00:47]} 30. exd4 {[%clk 0:00:13]}  e4 {[%clk 0:00:38]} 31. Qe7 {[%clk 0:00:09]}  Qd7 {[%clk 0:00:34]} 32. Qxd7 {[%clk 0:00:09]}  Rxd7 {[%clk 0:00:35]} 33. c3 {[%clk 0:00:09]}  f5 {[%clk 0:00:32]} 34. Bc4+ {[%clk 0:00:08]}  Kf8 {[%clk 0:00:32]} 35. Be6 {[%clk 0:00:09]}  Re7 {[%clk 0:00:31]} 36. Bxf5 {[%clk 0:00:09]}  Ke8 {[%clk 0:00:29]} 37. Kg3 {[%clk 0:00:09]}  Bd5 {[%clk 0:00:20]} 38. Re3 {[%clk 0:00:09]}  Rab7 {[%clk 0:00:20]} 39. Bc8 {[%clk 0:00:06]}  Rxb6 {[%clk 0:00:17]} 40. axb6 {[%clk 0:00:07]}  Kd8 {[%clk 0:00:18]} 41. Bxa6 {[%clk 0:00:07]}  Re6 {[%clk 0:00:17]} 42. Be2 {[%clk 0:00:04]}  Rxb6 {[%clk 0:00:17]} 43. b4 {[%clk 0:00:04]}  Rc6 {[%clk 0:00:16]} 44. Kg4 {[%clk 0:00:04]}  Rf6 {[%clk 0:00:13]} 45. Kxg5 {[%clk 0:00:04]}  Rf2 {[%clk 0:00:13]} 46. c4 {[%clk 0:00:05]}  Rxg2+ {[%clk 0:00:10]} 47. Kf4 {[%clk 0:00:05]}  Bb7 {[%clk 0:00:09]} 48. d5 {[%clk 0:00:06]}  Kd7 {[%clk 0:00:07]} 49. Kxe4 {[%clk 0:00:06]}  Rg1 {[%clk 0:00:07]} 50. Kd4 {[%clk 0:00:06]}  Rb1 {[%clk 0:00:07]} 51. Kc5 {[%clk 0:00:06]}  Rc1 {[%clk 0:00:05]} 52. Rg3 {[%clk 0:00:06]}  Ba6 {[%clk 0:00:03]} 53. Rxg7+ {[%clk 0:00:06]}  Kd8 {[%clk 0:00:04]} 54. b5 {[%clk 0:00:06]}  Bc8 {[%clk 0:00:03]} 55. Bg4 {[%clk 0:00:06]} 1-0


[Site "https://www.chess.com"]

[Event "Titled Tuesday Blitz March 21 Early 2023"]
[White "Jaskolka, Tomasz"]
[Black "Daneshvar, Bardiya"]
[WhiteFideId "1170791"]
[BlackFideId "12576468"]
[WhiteElo "2155"]
[BlackElo "2468"]
[Result "1/2-1/2"]
[Round "01"]
[TimeControl "180+2"]
[Date "2023.03.21"]
[WhiteClock "0:00:07"]
[BlackClock "0:00:05"]

1. d4 {[%clk 0:02:57]}  Nf6 {[%clk 0:02:55]} 2. Bf4 {[%clk 0:02:57]}  e6 {[%clk 0:02:51]} 3. e3 {[%clk 0:02:57]}  d5 {[%clk 0:02:52]} 4. c3 {[%clk 0:02:57]}  Bd6 {[%clk 0:02:52]} 5. Bg3 {[%clk 0:02:56]}  Nc6 {[%clk 0:02:50]} 6. Nf3 {[%clk 0:02:55]}  Qe7 {[%clk 0:02:51]} 7. Ne5 {[%clk 0:02:55]}  Ne4 {[%clk 0:02:49]} 8. Nxc6 {[%clk 0:02:53]}  bxc6 {[%clk 0:02:50]} 9. Bxd6 {[%clk 0:02:53]}  cxd6 {[%clk 0:02:50]} 10. Nd2 {[%clk 0:02:52]}  Nf6 {[%clk 0:02:46]} 11. Bd3 {[%clk 0:02:51]}  e5 {[%clk 0:02:46]} 12. h3 {[%clk 0:02:44]}  O-O {[%clk 0:02:45]} 13. O-O {[%clk 0:02:43]}  c5 {[%clk 0:02:45]} 14. Re1 {[%clk 0:02:21]}  Rb8 {[%clk 0:02:37]} 15. Qc2 {[%clk 0:02:21]}  g6 {[%clk 0:02:33]} 16. c4 {[%clk 0:02:15]}  e4 {[%clk 0:02:19]} 17. Bf1 {[%clk 0:02:14]}  dxc4 {[%clk 0:02:19]} 18. Nxc4 {[%clk 0:02:03]}  cxd4 {[%clk 0:02:18]} 19. exd4 {[%clk 0:02:02]}  Be6 {[%clk 0:02:17]} 20. Ne3 {[%clk 0:02:01]}  Rfc8 {[%clk 0:02:16]} 21. Qd2 {[%clk 0:01:58]}  d5 {[%clk 0:02:16]} 22. Rac1 {[%clk 0:01:56]}  Rxc1 {[%clk 0:02:13]} 23. Rxc1 {[%clk 0:01:55]}  Qb4 {[%clk 0:02:14]} 24. Rc2 {[%clk 0:01:34]}  Kg7 {[%clk 0:02:05]} 25. a3 {[%clk 0:01:33]}  Qb3 {[%clk 0:01:58]} 26. Qa5 {[%clk 0:01:12]}  Rb7 {[%clk 0:01:54]} 27. Ba6 {[%clk 0:01:06]}  Rb6 {[%clk 0:01:52]} 28. Be2 {[%clk 0:01:05]}  Qa2 {[%clk 0:01:51]} 29. Qc3 {[%clk 0:00:45]}  Rb3 {[%clk 0:01:40]} 30. Qd2 {[%clk 0:00:41]}  Rb7 {[%clk 0:01:35]} 31. Kh2 {[%clk 0:00:41]}  Ne8 {[%clk 0:01:18]} 32. Qc3 {[%clk 0:00:40]}  Qb3 {[%clk 0:01:10]} 33. Qc6 {[%clk 0:00:35]}  Rc7 {[%clk 0:00:57]} 34. Qxe8 {[%clk 0:00:35]}  Rxc2 {[%clk 0:00:56]} 35. Nxc2 {[%clk 0:00:34]}  Qxc2 {[%clk 0:00:56]} 36. Qb5 {[%clk 0:00:32]}  Qd2 {[%clk 0:00:49]} 37. Bg4 {[%clk 0:00:19]}  Bxg4 {[%clk 0:00:42]} 38. hxg4 {[%clk 0:00:19]}  Qxd4 {[%clk 0:00:42]} 39. b4 {[%clk 0:00:16]}  Qxf2 {[%clk 0:00:31]} 40. Qxd5 {[%clk 0:00:16]}  Qf4+ {[%clk 0:00:30]} 41. g3 {[%clk 0:00:16]}  Qf2+ {[%clk 0:00:28]} 42. Kh3 {[%clk 0:00:16]}  Qf1+ {[%clk 0:00:23]} 43. Kh2 {[%clk 0:00:16]}  Qd3 {[%clk 0:00:17]} 44. Qe5+ {[%clk 0:00:16]}  Kf8 {[%clk 0:00:17]} 45. Qh8+ {[%clk 0:00:15]}  Ke7 {[%clk 0:00:17]} 46. Qe5+ {[%clk 0:00:15]}  Kd7 {[%clk 0:00:17]} 47. Qc5 {[%clk 0:00:13]}  e3 {[%clk 0:00:15]} 48. Qxa7+ {[%clk 0:00:13]}  Ke6 {[%clk 0:00:15]} 49. Qb6+ {[%clk 0:00:14]}  Ke5 {[%clk 0:00:15]} 50. Qc7+ {[%clk 0:00:14]}  Ke4 {[%clk 0:00:13]} 51. Qe7+ {[%clk 0:00:14]}  Kf3 {[%clk 0:00:13]} 52. Qxf7+ {[%clk 0:00:14]}  Ke2 {[%clk 0:00:14]} 53. b5 {[%clk 0:00:14]}  Qxb5 {[%clk 0:00:13]} 54. Kg2 {[%clk 0:00:15]}  Qc6+ {[%clk 0:00:12]} 55. Kg1 {[%clk 0:00:15]}  Qc1+ {[%clk 0:00:12]} 56. Kg2 {[%clk 0:00:16]}  Qc2 {[%clk 0:00:13]} 57. Qf1+ {[%clk 0:00:15]}  Kd2 {[%clk 0:00:13]} 58. a4 {[%clk 0:00:10]}  e2 {[%clk 0:00:11]} 59. Qf4+ {[%clk 0:00:11]}  Kd1 {[%clk 0:00:11]} 60. Qf3 {[%clk 0:00:10]}  Qxa4 {[%clk 0:00:10]} 61. Qd3+ {[%clk 0:00:10]}  Ke1 {[%clk 0:00:10]} 62. Qc3+ {[%clk 0:00:10]}  Kd1 {[%clk 0:00:09]} 63. Qd3+ {[%clk 0:00:11]}  Kc1 {[%clk 0:00:09]} 64. Qxe2 {[%clk 0:00:08]}  Qc6+ {[%clk 0:00:09]} 65. Qf3 {[%clk 0:00:08]}  Qc2+ {[%clk 0:00:10]} 66. Qf2 {[%clk 0:00:09]}  Qxf2+ {[%clk 0:00:07]} 67. Kxf2 {[%clk 0:00:09]}  Kd2 {[%clk 0:00:08]} 68. g5 {[%clk 0:00:09]}  Kd3 {[%clk 0:00:07]} 69. Kf3 {[%clk 0:00:10]}  Kd4 {[%clk 0:00:08]} 70. Kf4 {[%clk 0:00:11]}  Kd5 {[%clk 0:00:08]} 71. Kg4 {[%clk 0:00:08]}  Ke5 {[%clk 0:00:09]} 72. Kh3 {[%clk 0:00:06]}  Ke4 {[%clk 0:00:08]} 73. Kg4 {[%clk 0:00:07]}  Ke3 {[%clk 0:00:08]} 74. Kh3 {[%clk 0:00:06]}  Kf3 {[%clk 0:00:09]} 75. Kh4 {[%clk 0:00:07]}  Ke4 {[%clk 0:00:09]} 76. Kg4 {[%clk 0:00:05]}  Ke5 {[%clk 0:00:10]} 77. Kh3 {[%clk 0:00:05]}  Ke4 {[%clk 0:00:08]} 78. Kh4 {[%clk 0:00:05]}  Kf5 {[%clk 0:00:07]} 79. Kh3 {[%clk 0:00:03]}  Kxg5 {[%clk 0:00:08]} 80. Kh2 {[%clk 0:00:03]}  Kg4 {[%clk 0:00:08]} 81. Kg2 {[%clk 0:00:04]}  h6 {[%clk 0:00:08]} 82. Kh2 {[%clk 0:00:04]}  Kf3 {[%clk 0:00:08]} 83. Kh3 {[%clk 0:00:04]}  h5 {[%clk 0:00:08]} 84. Kh4 {[%clk 0:00:04]}  Kg2 {[%clk 0:00:08]} 85. g4 {[%clk 0:00:05]}  hxg4 {[%clk 0:00:04]} 86. Kxg4 {[%clk 0:00:05]}  Kf2 {[%clk 0:00:04]} 87. Kg5 {[%clk 0:00:06]}  Kg3 {[%clk 0:00:05]} 88. Kxg6 {[%clk 0:00:07]} 1/2-1/2


[Site "https://www.chess.com"]

[Event "Titled Tuesday Blitz March 21 Early 2023"]
[White "Pranav, V"]
[Black "Kozin, Yuri"]
[WhiteFideId "25060783"]
[BlackFideId "4129920"]
[WhiteElo "2500"]
[BlackElo "2539"]
[Result "1-0"]
[Round "01"]
[TimeControl "180+2"]
[Date "2023.03.21"]
[WhiteClock "0:00:16"]
[BlackClock "0:00:10"]

1. e4 {[%clk 0:03:00]}  c5 {[%clk 0:02:58]} 2. Nf3 {[%clk 0:03:01]}  d6 {[%clk 0:02:58]} 3. Bb5+ {[%clk 0:03:00]}  Bd7 {[%clk 0:02:58]} 4. Bxd7+ {[%clk 0:03:00]}  Nxd7 {[%clk 0:02:58]} 5. O-O {[%clk 0:03:00]}  Ngf6 {[%clk 0:02:57]} 6. Re1 {[%clk 0:03:01]}  e6 {[%clk 0:02:55]} 7. d3 {[%clk 0:03:00]}  Be7 {[%clk 0:02:54]} 8. Nc3 {[%clk 0:02:59]}  O-O {[%clk 0:02:54]} 9. h3 {[%clk 0:02:59]}  a6 {[%clk 0:02:53]} 10. a4 {[%clk 0:02:59]}  Rb8 {[%clk 0:02:53]} 11. a5 {[%clk 0:03:00]}  Qc7 {[%clk 0:02:44]} 12. Bf4 {[%clk 0:02:57]}  Ne5 {[%clk 0:02:42]} 13. Bxe5 {[%clk 0:02:55]}  dxe5 {[%clk 0:02:43]} 14. Nd2 {[%clk 0:02:55]}  Rfd8 {[%clk 0:02:34]} 15. Nc4 {[%clk 0:02:54]}  Nd7 {[%clk 0:02:34]} 16. Qg4 {[%clk 0:02:36]}  h6 {[%clk 0:02:19]} 17. Qg3 {[%clk 0:02:28]}  Bg5 {[%clk 0:02:16]} 18. Ne2 {[%clk 0:02:27]}  Bf4 {[%clk 0:02:05]} 19. Qf3 {[%clk 0:02:15]}  b5 {[%clk 0:01:48]} 20. axb6 {[%clk 0:02:09]}  Nxb6 {[%clk 0:01:48]} 21. Nxb6 {[%clk 0:01:58]}  Qxb6 {[%clk 0:01:40]} 22. b3 {[%clk 0:01:56]}  Bg5 {[%clk 0:01:37]} 23. Ra4 {[%clk 0:01:51]}  Ra8 {[%clk 0:01:20]} 24. Rea1 {[%clk 0:01:41]}  Qc6 {[%clk 0:01:09]} 25. g3 {[%clk 0:01:38]}  f5 {[%clk 0:01:00]} 26. h4 {[%clk 0:01:36]}  Bf6 {[%clk 0:00:47]} 27. Kg2 {[%clk 0:01:36]}  Rd6 {[%clk 0:00:41]} 28. Ra5 {[%clk 0:01:17]}  fxe4 {[%clk 0:00:30]} 29. dxe4 {[%clk 0:01:10]}  Rd2 {[%clk 0:00:28]} 30. Qe3 {[%clk 0:01:10]}  Qd6 {[%clk 0:00:20]} 31. Rxa6 {[%clk 0:00:56]}  Rxa6 {[%clk 0:00:19]} 32. Rxa6 {[%clk 0:00:57]}  Qd8 {[%clk 0:00:18]} 33. Rc6 {[%clk 0:00:39]}  Kh7 {[%clk 0:00:18]} 34. Rxc5 {[%clk 0:00:36]}  Qd6 {[%clk 0:00:17]} 35. Rc4 {[%clk 0:00:34]}  Bd8 {[%clk 0:00:16]} 36. Rc3 {[%clk 0:00:24]}  Bb6 {[%clk 0:00:16]} 37. Qf3 {[%clk 0:00:25]}  Qb4 {[%clk 0:00:14]} 38. Rc4 {[%clk 0:00:17]}  Qb5 {[%clk 0:00:12]} 39. Qg4 {[%clk 0:00:17]}  Qd7 {[%clk 0:00:11]} 40. Rc3 {[%clk 0:00:16]}  Bd4 {[%clk 0:00:11]} 41. Rd3 {[%clk 0:00:16]}  Qe7 {[%clk 0:00:10]} 42. Rxd2 {[%clk 0:00:16]} 1-0


[Site "https://www.chess.com"]

[Event "Titled Tuesday Blitz March 21 Early 2023"]
[White "Alekseenko, Kirill"]
[Black "Quinones Garcia, Santiago"]
[WhiteFideId "4135539"]
[BlackFideId "4408497"]
[WhiteElo "2683"]
[BlackElo "2263"]
[Result "1-0"]
[Round "01"]
[TimeControl "180+2"]
[Date "2023.03.21"]
[WhiteClock "0:02:35"]
[BlackClock "0:02:02"]

1. d4 {[%clk 0:02:55]}  Nf6 {[%clk 0:03:00]} 2. Nc3 {[%clk 0:02:54]}  d5 {[%clk 0:02:59]} 3. Bf4 {[%clk 0:02:53]}  g6 {[%clk 0:02:59]} 4. e3 {[%clk 0:02:50]}  c6 {[%clk 0:02:59]} 5. h4 {[%clk 0:02:50]}  Bg7 {[%clk 0:02:57]} 6. Nf3 {[%clk 0:02:50]}  Bg4 {[%clk 0:02:55]} 7. Be2 {[%clk 0:02:50]}  Nbd7 {[%clk 0:02:55]} 8. Ne5 {[%clk 0:02:50]}  Bxe2 {[%clk 0:02:54]} 9. Qxe2 {[%clk 0:02:51]}  Nxe5 {[%clk 0:02:54]} 10. Bxe5 {[%clk 0:02:52]}  O-O {[%clk 0:02:49]} 11. O-O-O {[%clk 0:02:52]}  Qd7 {[%clk 0:02:36]} 12. f3 {[%clk 0:02:46]}  b5 {[%clk 0:02:32]} 13. g4 {[%clk 0:02:45]}  a5 {[%clk 0:02:23]} 14. h5 {[%clk 0:02:45]}  a4 {[%clk 0:02:20]} 15. a3 {[%clk 0:02:46]}  Rfb8 {[%clk 0:02:19]} 16. Na2 {[%clk 0:02:42]}  Qe6 {[%clk 0:02:07]} 17. hxg6 {[%clk 0:02:37]}  fxg6 {[%clk 0:02:06]} 18. Qh2 {[%clk 0:02:35]}  Qf7 {[%clk 0:02:02]} 19. Bxb8 {[%clk 0:02:35]} 1-0


[Site "https://www.chess.com"]

[Event "Titled Tuesday Blitz March 21 Early 2023"]
[White "Makhnev, Denis"]
[Black "Garv Gaur"]
[WhiteFideId "13707647"]
[BlackFideId "45030839"]
[WhiteElo "2525"]
[BlackElo "2068"]
[Result "0-1"]
[Round "01"]
[TimeControl "180+2"]
[Date "2023.03.21"]
[WhiteClock "0:00:04"]
[BlackClock "0:00:37"]

1. d4 {[%clk 0:03:00]}  Nf6 {[%clk 0:02:54]} 2. c4 {[%clk 0:03:00]}  e6 {[%clk 0:02:54]} 3. Nf3 {[%clk 0:03:00]}  b6 {[%clk 0:02:54]} 4. a3 {[%clk 0:02:56]}  Bb7 {[%clk 0:02:52]} 5. Nc3 {[%clk 0:02:56]}  d5 {[%clk 0:02:52]} 6. cxd5 {[%clk 0:02:56]}  Nxd5 {[%clk 0:02:51]} 7. Qc2 {[%clk 0:02:56]}  c5 {[%clk 0:02:48]} 8. e4 {[%clk 0:02:54]}  Nf6 {[%clk 0:02:40]} 9. Be3 {[%clk 0:02:30]}  Nbd7 {[%clk 0:02:35]} 10. dxc5 {[%clk 0:02:16]}  Bxc5 {[%clk 0:02:34]} 11. Bxc5 {[%clk 0:02:16]}  Nxc5 {[%clk 0:02:34]} 12. Bb5+ {[%clk 0:02:12]}  Ncd7 {[%clk 0:02:33]} 13. Rd1 {[%clk 0:02:09]}  Qc7 {[%clk 0:02:29]} 14. Qa4 {[%clk 0:01:21]}  a6 {[%clk 0:02:17]} 15. Bxd7+ {[%clk 0:01:21]}  Nxd7 {[%clk 0:02:17]} 16. O-O {[%clk 0:01:21]}  Bc6 {[%clk 0:02:16]} 17. Qb4 {[%clk 0:01:04]}  Nc5 {[%clk 0:02:03]} 18. Nd4 {[%clk 0:00:24]}  O-O {[%clk 0:02:01]} 19. f3 {[%clk 0:00:25]}  Rfd8 {[%clk 0:02:00]} 20. a4 {[%clk 0:00:25]}  Be8 {[%clk 0:01:35]} 21. Nde2 {[%clk 0:00:15]}  Rac8 {[%clk 0:01:32]} 22. Rxd8 {[%clk 0:00:13]}  Rxd8 {[%clk 0:01:33]} 23. Qc4 {[%clk 0:00:09]}  Qd6 {[%clk 0:01:22]} 24. Rd1 {[%clk 0:00:08]}  Qe7 {[%clk 0:01:18]} 25. Rxd8 {[%clk 0:00:08]}  Qxd8 {[%clk 0:01:19]} 26. a5 {[%clk 0:00:09]}  Qd6 {[%clk 0:01:09]} 27. b4 {[%clk 0:00:08]}  Nd7 {[%clk 0:00:59]} 28. Qxa6 {[%clk 0:00:08]}  Qxb4 {[%clk 0:00:58]} 29. Qa8 {[%clk 0:00:07]}  Kf8 {[%clk 0:00:57]} 30. a6 {[%clk 0:00:07]}  Qc5+ {[%clk 0:00:57]} 31. Kf1 {[%clk 0:00:07]}  Ne5 {[%clk 0:00:43]} 32. a7 {[%clk 0:00:07]}  Nd3 {[%clk 0:00:44]} 33. Qxe8+ {[%clk 0:00:07]}  Kxe8 {[%clk 0:00:44]} 34. a8=Q+ {[%clk 0:00:08]}  Ke7 {[%clk 0:00:45]} 35. Nd1 {[%clk 0:00:06]}  Qc2 {[%clk 0:00:42]} 36. Qa3+ {[%clk 0:00:05]}  Ke8 {[%clk 0:00:38]} 37. Qa1 {[%clk 0:00:04]}  Qd2 {[%clk 0:00:37]} 38. Ndc3 {[%clk 0:00:02]}  Qe3 {[%clk 0:00:37]} 39. Nd1 {[%clk 0:00:03]}  Qd2 {[%clk 0:00:37]} 40. Qb1 {[%clk 0:00:04]}  Qe1# {[%clk 0:00:37]} 0-1


[Site "https://www.chess.com"]

[Event "Titled Tuesday Blitz March 21 Early 2023"]
[White "Lenderman, Aleksandr"]
[Black "Richter, Paul"]
[WhiteFideId "2021285"]
[BlackFideId "2046350"]
[WhiteElo "2607"]
[BlackElo "2530"]
[Result "1-0"]
[Round "01"]
[TimeControl "180+2"]
[Date "2023.03.21"]
[WhiteClock "0:01:40"]
[BlackClock "0:00:08"]

1. Nf3 {[%clk 0:02:44]}  Nf6 {[%clk 0:02:57]} 2. c4 {[%clk 0:02:43]}  g6 {[%clk 0:02:57]} 3. Nc3 {[%clk 0:02:43]}  Bg7 {[%clk 0:02:58]} 4. e4 {[%clk 0:02:43]}  d6 {[%clk 0:02:58]} 5. d4 {[%clk 0:02:43]}  O-O {[%clk 0:02:58]} 6. Be2 {[%clk 0:02:44]}  Na6 {[%clk 0:02:58]} 7. O-O {[%clk 0:02:43]}  e5 {[%clk 0:02:59]} 8. d5 {[%clk 0:02:36]}  Nc5 {[%clk 0:02:58]} 9. Qc2 {[%clk 0:02:36]}  a5 {[%clk 0:02:59]} 10. Be3 {[%clk 0:02:33]}  Nh5 {[%clk 0:02:55]} 11. a3 {[%clk 0:02:26]}  Nf4 {[%clk 0:02:49]} 12. b4 {[%clk 0:02:25]}  Nxe2+ {[%clk 0:02:32]} 13. Nxe2 {[%clk 0:02:23]}  Nxe4 {[%clk 0:01:21]} 14. Qxe4 {[%clk 0:02:20]}  Bf5 {[%clk 0:01:21]} 15. Qh4 {[%clk 0:02:20]}  Qxh4 {[%clk 0:01:21]} 16. Nxh4 {[%clk 0:02:20]}  Bd3 {[%clk 0:01:21]} 17. Nc3 {[%clk 0:02:09]}  Bxf1 {[%clk 0:01:07]} 18. Rxf1 {[%clk 0:02:10]}  f5 {[%clk 0:00:46]} 19. Nb5 {[%clk 0:02:02]}  axb4 {[%clk 0:00:28]} 20. axb4 {[%clk 0:02:03]}  Ra4 {[%clk 0:00:27]} 21. Nxc7 {[%clk 0:02:00]}  Rxb4 {[%clk 0:00:27]} 22. Ne6 {[%clk 0:01:57]}  Rc8 {[%clk 0:00:23]} 23. Nf3 {[%clk 0:01:54]}  Rbxc4 {[%clk 0:00:21]} 24. Rb1 {[%clk 0:01:53]}  e4 {[%clk 0:00:18]} 25. Nfg5 {[%clk 0:01:53]}  b5 {[%clk 0:00:15]} 26. h4 {[%clk 0:01:44]}  b4 {[%clk 0:00:14]} 27. Nxg7 {[%clk 0:01:44]}  Kxg7 {[%clk 0:00:15]} 28. Ra1 {[%clk 0:01:44]}  R8c7 {[%clk 0:00:14]} 29. Ne6+ {[%clk 0:01:44]}  Kf6 {[%clk 0:00:13]} 30. Nxc7 {[%clk 0:01:44]}  Rxc7 {[%clk 0:00:12]} 31. Bd4+ {[%clk 0:01:45]}  Ke7 {[%clk 0:00:12]} 32. Ra6 {[%clk 0:01:45]}  Rb7 {[%clk 0:00:11]} 33. Kf1 {[%clk 0:01:42]}  b3 {[%clk 0:00:11]} 34. Bb2 {[%clk 0:01:42]}  Rb5 {[%clk 0:00:12]} 35. Ra7+ {[%clk 0:01:43]}  Kf8 {[%clk 0:00:12]} 36. Ke2 {[%clk 0:01:42]}  Rxd5 {[%clk 0:00:12]} 37. Rb7 {[%clk 0:01:40]}  Rd3 {[%clk 0:00:10]} 38. Rxh7 {[%clk 0:01:40]}  d5 {[%clk 0:00:10]} 39. Rb7 {[%clk 0:01:40]}  d4 {[%clk 0:00:10]} 40. Rb4 {[%clk 0:01:40]}  Kf7 {[%clk 0:00:08]} 41. Rxd4 {[%clk 0:01:40]} 1-0


[Site "https://www.chess.com"]

[Event "Titled Tuesday Blitz March 21 Early 2023"]
[White "Ljukin, Sergei"]
[Black "Ter-Sahakyan, Samvel"]
[WhiteFideId "14102200"]
[BlackFideId "13302531"]
[WhiteElo "2312"]
[BlackElo "2566"]
[Result "0-1"]
[Round "01"]
[TimeControl "180+2"]
[Date "2023.03.21"]
[WhiteClock "0:00:13"]
[BlackClock "0:01:15"]

1. e4 {[%clk 0:02:50]}  c5 {[%clk 0:02:57]} 2. Nf3 {[%clk 0:02:49]}  e6 {[%clk 0:02:57]} 3. d4 {[%clk 0:02:50]}  cxd4 {[%clk 0:02:58]} 4. Nxd4 {[%clk 0:02:50]}  Nf6 {[%clk 0:02:59]} 5. Nc3 {[%clk 0:02:50]}  Nc6 {[%clk 0:02:59]} 6. Nxc6 {[%clk 0:02:51]}  bxc6 {[%clk 0:03:00]} 7. e5 {[%clk 0:02:51]}  Nd5 {[%clk 0:03:00]} 8. Ne4 {[%clk 0:02:52]}  Qc7 {[%clk 0:03:00]} 9. f4 {[%clk 0:02:50]}  Qb6 {[%clk 0:03:00]} 10. c4 {[%clk 0:02:50]}  Bb4+ {[%clk 0:02:58]} 11. Ke2 {[%clk 0:02:48]}  f5 {[%clk 0:02:58]} 12. exf6 {[%clk 0:02:46]}  Nxf6 {[%clk 0:02:57]} 13. Be3 {[%clk 0:02:45]}  Qd8 {[%clk 0:02:57]} 14. Nd6+ {[%clk 0:02:35]}  Bxd6 {[%clk 0:02:58]} 15. Qxd6 {[%clk 0:02:35]}  Bb7 {[%clk 0:02:58]} 16. Rd1 {[%clk 0:01:24]}  c5 {[%clk 0:02:51]} 17. Qxc5 {[%clk 0:01:21]}  Rc8 {[%clk 0:02:11]} 18. Qb4 {[%clk 0:01:17]}  Be4 {[%clk 0:01:56]} 19. Rd2 {[%clk 0:00:35]}  Qc7 {[%clk 0:01:46]} 20. Kd1 {[%clk 0:00:35]}  d5 {[%clk 0:01:36]} 21. c5 {[%clk 0:00:31]}  Kf7 {[%clk 0:01:36]} 22. Bd3 {[%clk 0:00:29]}  Rb8 {[%clk 0:01:34]} 23. Qc3 {[%clk 0:00:28]}  Rhc8 {[%clk 0:01:34]} 24. Bd4 {[%clk 0:00:26]}  Bxd3 {[%clk 0:01:30]} 25. Qxd3 {[%clk 0:00:24]}  Ne4 {[%clk 0:01:27]} 26. Rc2 {[%clk 0:00:23]}  Qa5 {[%clk 0:01:21]} 27. a3 {[%clk 0:00:22]}  Qa4 {[%clk 0:01:22]} 28. Rf1 {[%clk 0:00:19]}  Rb3 {[%clk 0:01:21]} 29. Bc3 {[%clk 0:00:16]}  Rxc5 {[%clk 0:01:15]} 30. f5 {[%clk 0:00:14]}  e5 {[%clk 0:01:16]} 31. Bxe5 {[%clk 0:00:13]}  Rxd3+ {[%clk 0:01:15]} 0-1


[Site "https://www.chess.com"]

[Event "Titled Tuesday Blitz March 21 Early 2023"]
[White "Padmini, Rout"]
[Black "Kramnik, Vladimir"]
[WhiteFideId "5029295"]
[BlackFideId "4101588"]
[WhiteElo "2314"]
[BlackElo "2712"]
[Result "0-1"]
[Round "01"]
[TimeControl "180+2"]
[Date "2023.03.21"]
[WhiteClock "0:00:09"]
[BlackClock "0:01:48"]

1. e4 {[%clk 0:02:59]}  c5 {[%clk 0:02:59]} 2. Nf3 {[%clk 0:02:58]}  e6 {[%clk 0:03:00]} 3. d4 {[%clk 0:02:57]}  cxd4 {[%clk 0:03:00]} 4. Nxd4 {[%clk 0:02:57]}  a6 {[%clk 0:03:01]} 5. c4 {[%clk 0:02:55]}  Nf6 {[%clk 0:03:01]} 6. Nc3 {[%clk 0:02:55]}  Qc7 {[%clk 0:03:01]} 7. Be2 {[%clk 0:02:54]}  b6 {[%clk 0:03:01]} 8. O-O {[%clk 0:02:54]}  Bb7 {[%clk 0:03:01]} 9. f3 {[%clk 0:02:54]}  Bd6 {[%clk 0:02:53]} 10. g3 {[%clk 0:02:32]}  Nc6 {[%clk 0:02:51]} 11. Be3 {[%clk 0:02:28]}  Bc5 {[%clk 0:02:46]} 12. Qd2 {[%clk 0:02:21]}  h5 {[%clk 0:02:45]} 13. a3 {[%clk 0:01:41]}  Ne5 {[%clk 0:02:41]} 14. b4 {[%clk 0:01:33]}  Be7 {[%clk 0:02:39]} 15. Rac1 {[%clk 0:01:28]}  d6 {[%clk 0:02:39]} 16. Na4 {[%clk 0:01:17]}  Ned7 {[%clk 0:02:37]} 17. Rc2 {[%clk 0:00:47]}  O-O {[%clk 0:02:36]} 18. Rfc1 {[%clk 0:00:46]}  Rfc8 {[%clk 0:02:34]} 19. Qe1 {[%clk 0:00:44]}  Qd8 {[%clk 0:02:33]} 20. Qf2 {[%clk 0:00:44]}  Rab8 {[%clk 0:02:32]} 21. h4 {[%clk 0:00:30]}  Ba8 {[%clk 0:02:28]} 22. Kh2 {[%clk 0:00:16]}  Ne5 {[%clk 0:02:26]} 23. Kg1 {[%clk 0:00:14]}  Nfd7 {[%clk 0:02:21]} 24. Nb3 {[%clk 0:00:11]}  b5 {[%clk 0:02:17]} 25. cxb5 {[%clk 0:00:10]}  Rxc2 {[%clk 0:02:16]} 26. Rxc2 {[%clk 0:00:10]}  axb5 {[%clk 0:02:17]} 27. Nc3 {[%clk 0:00:11]}  Nc4 {[%clk 0:02:17]} 28. Bxc4 {[%clk 0:00:11]}  bxc4 {[%clk 0:02:16]} 29. Nd2 {[%clk 0:00:12]}  Ne5 {[%clk 0:02:15]} 30. Qf1 {[%clk 0:00:10]}  d5 {[%clk 0:02:11]} 31. exd5 {[%clk 0:00:10]}  exd5 {[%clk 0:02:11]} 32. Bd4 {[%clk 0:00:11]}  Nc6 {[%clk 0:02:11]} 33. Qf2 {[%clk 0:00:09]}  Nxd4 {[%clk 0:02:10]} 34. Qxd4 {[%clk 0:00:10]}  Bf6 {[%clk 0:02:10]} 35. Qf4 {[%clk 0:00:10]}  Qb6+ {[%clk 0:02:06]} 36. Kg2 {[%clk 0:00:10]}  Re8 {[%clk 0:02:06]} 37. Nf1 {[%clk 0:00:09]}  d4 {[%clk 0:02:01]} 38. Ne4 {[%clk 0:00:10]}  Bxe4 {[%clk 0:02:00]} 39. fxe4 {[%clk 0:00:10]}  Qc6 {[%clk 0:01:58]} 40. Nd2 {[%clk 0:00:10]}  c3 {[%clk 0:01:56]} 41. Nf3 {[%clk 0:00:10]}  d3 {[%clk 0:01:55]} 42. e5 {[%clk 0:00:09]}  dxc2 {[%clk 0:01:53]} 43. exf6 {[%clk 0:00:09]}  Qxf6 {[%clk 0:01:48]} 0-1


[Site "https://www.chess.com"]